fUSD/lending_fUSD_20240104
["ID","MTS","AMOUNT","RATE_DAILY","PERIOD"]
[310136140,1704381057669,-1416.59,0.0003315,2]
[310136141,1704381057679,-777.84,0.0003315,2]
[310136142,1704381057690,-1009.86,0.0003315,2]
[310136143,1704381057700,-3343.5,0.0003315,2]
[310136144,1704381057710,-500.0,0.0003315,2]
[310136145,1704381057721,-500.0,0.0003315,2]
[310136146,1704381057732,-1602.7,0.0003315,2]
[310136147,1704381057742,-2569.63,0.0003315,2]
[310136148,1704381057752,-337.80264167,0.0003315,2]
[310136149,1704381057765,-579.8,0.0003315,2]
[310136150,1704381057776,-2815.05,0.0003315,2]
[310136151,1704381057787,-2487.32,0.0003315,2]
[310136152,1704381057797,-500.0,0.0003315,2]
[310136153,1704381057810,-713.13,0.0003315,2]
[310136154,1704381057822,-500.0,0.0003315,2]
[310136155,1704381057834,-853.26,0.0003315,2]
[310136156,1704381057846,-1139.8,0.0003315,2]
[310136157,1704381057856,-640.0,0.0003315,2]
[310136158,1704381057868,-500.0,0.0003315,2]
[310136159,1704381057881,-1004.2,0.0003315,2]
[310136160,1704381057892,-505.9,0.0003315,2]
[310136161,1704381057902,-500.0,0.0003315,2]
[310136162,1704381057913,-799.09,0.0003315,2]
[310136163,1704381057924,-500.0,0.0003315,2]
[310136164,1704381057934,-500.0,0.0003315,2]
[310136165,1704381057945,-1434.12,0.0003315,2]
[310136166,1704381057956,-1083.97,0.0003315,2]
[310136167,1704381057968,-500.0,0.0003315,2]
[310136168,1704381057979,-505.01,0.0003315,2]
[310136169,1704381057991,-500.0,0.0003315,2]
[310136170,1704381058001,-500.0,0.0003315,2]
[310136171,1704381058011,-2552.84,0.0003315,2]
[310136172,1704381058022,-570.32130042,0.0003315,2]
[310136173,1704381058032,-500.0,0.0003315,2]
[310136174,1704381058042,-500.0,0.0003315,2]
[310136175,1704381058052,-695.8,0.0003315,2]
[310136176,1704381058064,-500.0,0.0003315,2]
[310136177,1704381058073,-500.0,0.0003315,2]
[310136178,1704381058083,-1064.9,0.0003315,2]
[310136179,1704381058093,-500.0,0.0003315,2]
[310136180,1704381058103,-500.0,0.0003315,2]
[310136181,1704381058113,-500.0,0.0003315,2]
[310136182,1704381058123,-1227.97,0.0003315,2]
[310136183,1704381058134,-968.61,0.0003315,2]
[310136184,1704381058144,-500.0,0.0003315,2]
[310136185,1704381058155,-500.0,0.0003315,2]
[310136186,1704381058165,-1562.0,0.0003315,2]
[310136187,1704381058175,-5777.04,0.0003315,2]
[310136188,1704381058185,-3207.71,0.0003315,2]
[310136189,1704381058196,-832.23,0.0003315,2]
[310136190,1704381058206,-775.21,0.0003315,2]
[310136191,1704381058216,-1365.02,0.0003315,2]
[310136192,1704381058226,-500.0,0.0003315,2]
[310136193,1704381058236,-500.0,0.0003315,2]
[310136194,1704381058246,-1878.91,0.0003315,2]
[310136195,1704381058256,-767.5,0.0003315,2]
[310136196,1704381058266,-500.0,0.0003315,2]
[310136197,1704381058276,-650.37,0.0003315,2]
[310136198,1704381058287,-500.0,0.0003315,2]
[310136199,1704381058297,-1056.62,0.0003315,2]
[310136200,1704381058307,-500.0,0.0003315,2]
[310136201,1704381058318,-500.0,0.0003315,2]
[310136202,1704381058328,-1860.55,0.0003315,2]
[310136203,1704381058338,-1573.93,0.0003315,2]
[310136204,1704381058349,-2337.85,0.0003315,2]
[310136205,1704381058360,-3463.68,0.0003315,2]
[310136206,1704381058371,-500.0,0.0003315,2]
[310136207,1704381058381,-500.0,0.0003315,2]
[310136208,1704381058390,-500.0,0.0003315,2]
[310136209,1704381058400,-3366.56,0.0003315,2]
[310136210,1704381058410,-911.83,0.0003315,2]
[310136211,1704381058421,-1731.71,0.0003315,2]
[310136212,1704381058431,-500.0,0.0003315,2]
[310136213,1704381058442,-500.0,0.0003315,2]
[310136214,1704381058452,-176.43322967,0.0003315,2]
[310136215,1704381058461,-564.82263962,0.0003315,2]
[310136216,1704381058471,-839.06,0.0003315,2]
[310136217,1704381058482,-3067.93,0.0003315,2]
[310136218,1704381058493,-500.0,0.0003315,2]
[310136219,1704381058503,-500.0,0.0003315,2]
[310136220,1704381058513,-1586.46,0.0003315,2]
[310136221,1704381058522,-500.0,0.0003315,2]
[310136222,1704381058533,-500.0,0.0003315,2]
[310136223,1704381058543,-1306.5,0.0003315,2]
[310136224,1704381058552,-739.97,0.0003315,2]
[310136225,1704381058562,-500.0,0.0003315,2]
[310136226,1704381058572,-1780.22,0.0003315,2]
[310136227,1704381058582,-500.0,0.0003315,2]
[310136228,1704381058592,-500.0,0.0003315,2]
[310136229,1704381058602,-4603.8,0.0003315,2]
[310136230,1704381058613,-3134.89,0.0003315,2]
[310136231,1704381058623,-684.13,0.0003315,2]
[310136232,1704381058634,-674.65,0.0003315,2]
[310136233,1704381058644,-8928.12,0.0003315,2]
[310136234,1704381058654,-500.0,0.0003315,2]
[310136235,1704381058664,-500.0,0.0003315,2]
[310136236,1704381058675,-770.93,0.0003315,2]
[310136237,1704381058686,-500.0,0.0003315,2]
[310136238,1704381058697,-500.0,0.0003315,2]
[310136239,1704381058708,-500.0,0.0003315,2]
[310136240,1704381058718,-790.37,0.0003315,2]
[310136241,1704381058728,-1000.0,0.0003315,2]
[310136242,1704381058738,-1615.27,0.0003315,2]
[310136243,1704381058748,-2147.32,0.0003315,2]
[310136244,1704381058762,-500.0,0.0003315,2]
[310136245,1704381058772,-500.0,0.0003315,2]
[310136246,1704381058783,-803.99,0.0003315,2]
[310136247,1704381058792,-1787.86,0.0003315,2]
[310136248,1704381058802,-500.0,0.0003315,2]
[310136249,1704381058813,-533.04,0.0003315,2]
[310136250,1704381058823,-500.0,0.0003315,2]
[310136251,1704381058834,-500.0,0.0003315,2]
[310136252,1704381058844,-151.0,0.0003315,7]
[310136253,1704381058855,-151.0,0.0003315,7]
[310136254,1704381058865,-247.278448,0.0003315,7]
[310136255,1704381058875,-150.59,0.00033229,2]
[310136256,1704381058885,-232.6,0.00033282,2]
[310136257,1704381058895,-176.19044628,0.00033297,2]
[310136258,1704381058906,-1888.78174301,0.00033297,2]
[310136259,1704381058916,-4894.0,0.00033366,2]
[310136260,1704381058926,-309.13673476,0.00033401,5]
[310136261,1704381058937,-198.8,0.00033402,2]
[310136262,1704381058948,-471.83,0.00033423,2]
[310136263,1704381058959,-500.0,0.00033423,2]
[310136264,1704381059153,-6449.71,0.00033423,2]
[310136265,1704381059164,-1288.27,0.00033423,2]
[310136266,1704381059173,-858.02,0.00033423,2]
[310136267,1704381059183,-1791.09,0.00033423,2]
[310136268,1704381059193,-500.0,0.00033423,2]
[310136269,1704381059202,-1338.32,0.00033423,2]
[310136270,1704381059212,-1038.49,0.00033423,2]
[310136271,1704381059223,-500.0,0.00033423,2]
[310136272,1704381059233,-1851.25,0.00033423,2]
[310136273,1704381059243,-500.0,0.00033423,2]
[310136274,1704381059255,-500.0,0.00033423,2]
[310136275,1704381059266,-500.0,0.00033423,2]
[310136276,1704381059276,-518.58,0.00033423,2]
[310136277,1704381059286,-998.81,0.00033423,2]
[310136278,1704381059296,-500.0,0.00033423,2]
[310136279,1704381059305,-526.19,0.00033424,2]
[310136280,1704381059315,-500.0,0.00033424,2]
[310136281,1704381059324,-500.0,0.00033424,2]
[310136282,1704381059334,-500.0,0.00033424,2]
[310136283,1704381059344,-500.0,0.00033424,2]
[310136284,1704381059354,-500.0,0.00033424,2]
[310136285,1704381059365,-500.0,0.00033424,2]
[310136286,1704381059375,-500.0,0.00033424,2]
[310136287,1704381059386,-500.0,0.00033424,2]
[310136288,1704381059395,-500.0,0.00033424,2]
[310136289,1704381059406,-500.0,0.00033424,2]
[310136290,1704381059416,-664.92,0.00033424,2]
[310136291,1704381059426,-500.0,0.00033424,2]
[310136292,1704381059436,-976.94,0.00033424,2]
[310136293,1704381059446,-500.0,0.00033424,2]
[310136294,1704381059456,-500.0,0.00033424,2]
[310136295,1704381059468,-1313.16,0.00033424,2]
[310136296,1704381059477,-500.0,0.00033424,2]
[310136297,1704381059486,-500.0,0.00033424,2]
[310136298,1704381059495,-500.0,0.00033424,2]
[310136299,1704381059504,-500.0,0.00033424,2]
[310136300,1704381059513,-500.0,0.00033424,2]
[310136301,1704381059523,-500.0,0.00033424,2]
[310136302,1704381059532,-552.52,0.00033424,2]
[310136303,1704381059542,-500.0,0.00033424,2]
[310136304,1704381059552,-500.0,0.00033424,2]
[310136305,1704381059561,-626.31,0.00033424,2]
[310136306,1704381059570,-282.52,0.00033424,2]
[310136307,1704381059580,-500.0,0.00033424,2]
[310136308,1704381059589,-500.0,0.00033424,2]
[310136309,1704381059599,-500.0,0.00033424,2]
[310136310,1704381059607,-418.73202795,0.00033424,2]
[310136311,1704381059617,-500.0,0.00033424,2]
[310136312,1704381059628,-829.09,0.00033424,2]
[310136313,1704381059638,-500.0,0.00033424,2]
[310136314,1704381059647,-500.0,0.00033424,2]
[310136315,1704381059657,-500.0,0.00033424,2]
[310136316,1704381059667,-500.0,0.00033424,2]
[310136317,1704381059676,-500.0,0.00033424,2]
[310136318,1704381059685,-500.0,0.00033424,2]
[310136319,1704381059696,-383.68,0.00033424,2]
[310136320,1704381059705,-500.0,0.00033424,2]
[310136321,1704381059715,-638.64,0.00033424,2]
[310136322,1704381059724,-500.0,0.00033424,2]
[310136323,1704381059734,-758.02,0.00033424,2]
[310136324,1704381059745,-705.84,0.00033424,2]
[310136325,1704381059755,-151.47940784,0.00033424,2]
[310136326,1704381059764,-739.48,0.00033424,2]
[310136327,1704381059774,-928.98,0.00033424,2]
[310136328,1704381059784,-500.0,0.00033424,2]
[310136329,1704381059794,-500.0,0.00033424,2]
[310136330,1704381059803,-500.0,0.00033424,2]
[310136331,1704381059813,-500.0,0.00033424,2]
[310136332,1704381059823,-500.0,0.00033424,2]
[310136333,1704381059832,-883.62,0.00033424,2]
[310136334,1704381059842,-500.0,0.00033424,2]
[310136335,1704381059851,-707.81,0.00033424,2]
[310136336,1704381059862,-500.0,0.00033424,2]
[310136337,1704381059871,-500.0,0.00033424,2]
[310136338,1704381059881,-500.0,0.00033424,2]
[310136339,1704381059891,-500.0,0.00033424,2]
[310136340,1704381059901,-500.0,0.00033424,2]
[310136341,1704381059912,-500.0,0.00033424,2]
[310136342,1704381059922,-566.76,0.00033424,2]
[310136343,1704381059931,-500.0,0.00033424,2]
[310136344,1704381059942,-500.0,0.00033424,2]
[310136345,1704381059951,-500.0,0.00033424,2]
[310136346,1704381059961,-500.0,0.00033424,2]
[310136347,1704381059970,-500.0,0.00033424,2]
[310136348,1704381059980,-500.0,0.00033424,2]
[310136349,1704381059990,-506.49,0.00033424,2]
[310136350,1704381059999,-500.0,0.00033424,2]
[310136351,1704381060008,-500.0,0.00033424,2]
[310136352,1704381060019,-500.0,0.00033424,2]
[310136353,1704381060028,-500.0,0.00033424,2]
[310136354,1704381060038,-500.0,0.00033424,2]
[310136355,1704381060047,-500.0,0.00033424,2]
[310136356,1704381060056,-656.18,0.00033424,2]
[310136357,1704381060065,-500.0,0.00033424,2]
[310136358,1704381060075,-652.25,0.00033424,2]
[310136359,1704381060084,-588.93,0.00033424,2]
[310136360,1704381060094,-500.0,0.00033424,2]
[310136361,1704381060103,-500.0,0.00033424,2]
[310136362,1704381060112,-500.0,0.00033424,2]
[310136363,1704381060122,-637.11,0.00033424,2]
[310136364,1704381060131,-500.0,0.00033424,2]
[310136365,1704381060140,-856.33,0.00033424,2]
[310136366,1704381060150,-500.0,0.00033424,2]
[310136367,1704381060160,-192.92221267,0.00033424,2]
[310136368,1704381060704,-334.86995381,0.00032876,2]
[310136369,1704381060716,-350.45004619,0.00032876,2]
[310136370,1704381060726,-307.07778733,0.00033424,2]
[310136371,1704381060736,-845.85,0.00033424,2]
[310136372,1704381060748,-141.44583106,0.00033424,2]
[310136373,1704381060764,-358.55416894,0.00033424,2]
[310136374,1704381060774,-500.0,0.00033424,2]
[310136375,1704381060785,-500.0,0.00033424,2]
[310136376,1704381060796,-1610.87,0.00033424,2]
[310136377,1704381060806,-314.02583106,0.00033424,2]
[310136378,1704381060819,-185.97416894,0.00033424,2]
[310136379,1704381060828,-531.34235099,0.00033424,2]
[310136380,1704381060842,-571.65764901,0.00033424,2]
[310136381,1704381060853,-814.67,0.00033424,2]
[310136382,1704381060864,-856.75,0.00033424,2]
[310136383,1704381060877,-500.0,0.00033424,2]
[310136384,1704381060887,-500.0,0.00033424,2]
[310136385,1704381060898,-641.42,0.00033424,2]
[310136386,1704381060908,-409.91473239,0.00033424,2]
[310136387,1704381060923,-90.08526761,0.00033424,2]
[310136388,1704381060933,-500.0,0.00033424,2]
[310136389,1704381060946,-500.0,0.00033424,2]
[310136390,1704381060956,-500.0,0.00033424,2]
[310136391,1704381060966,-500.0,0.00033424,2]
[310136392,1704381060975,-184.31473239,0.00033424,2]
[310136393,1704381061006,-162.5307413,0.00032,2]
[310136394,1704381061015,-913.99956822,0.00033424,2]
[310136395,1704381061429,-535.33,0.0002979,10]
[310136396,1704381061439,-22749.45048494,0.0003,2]
[310136397,1704381061453,-1734.03922036,0.0003,2]
[310136398,1704381061466,-1558.93318069,0.0003,2]
[310136399,1704381061478,-665.88864,0.0003,2]
[310136400,1704381061490,-661.9968496,0.0003,2]
[310136401,1704381061501,-11068.39639674,0.0003,2]
[310136402,1704381061513,-6336.51126664,0.0003,2]
[310136403,1704381062386,-375.77532929,0.00029798,2]
[310136404,1704381062397,-522.36940647,0.00029799,2]
[310136405,1704381062407,-2435.00526924,0.0003,2]
[310136406,1704381062494,-329.53189985,0.0003,2]
[310136407,1704381062507,-565.51604939,0.0003,2]
[310136427,1704382231654,-522.36940647,0.00024508,2]
[310136428,1704382231665,-216.0,0.00024509,2]
[310136429,1704382231674,-250.0,0.00027,3]
[310136430,1704382231684,-500.0,0.000274,2]
[310136431,1704382231693,-432.15,0.00027939,2]
[310136432,1704382231703,-300.0,0.00028628,2]
[310136433,1704382231713,-23900.0,0.00028629,2]
[310136434,1704382231723,-156.33,0.0002866,2]
[310136435,1704382231732,-2000.0,0.00028736,2]
[310136436,1704382231742,-160.45,0.00028798,2]
[310136437,1704382231751,-335.84,0.000289,2]
[310136438,1704382231761,-499.99,0.000289,2]
[310136439,1704382231771,-2553.4,0.000289,2]
[310136440,1704382231780,-216.0,0.00028945,9]
[310136441,1704382231790,-772.6,0.0002895,2]
[310136442,1704382231799,-300.0,0.00029,3]
[310136443,1704382231809,-776.35,0.00029,2]
[310136444,1704382231819,-198.8,0.00029001,2]
[310136445,1704382231828,-250.0,0.00029012,2]
[310136446,1704382231838,-150.0,0.00029033,2]
[310136447,1704382231848,-261.71,0.00029041,2]
[310136448,1704382231857,-1249.04,0.0002919,2]
[310136449,1704382231867,-4623.3583,0.000297,2]
[310136450,1704382231877,-178.95437766,0.0002972,2]
[310136451,1704382231889,-629.71916875,0.00029758,2]
[310136452,1704382231898,-356.4,0.00029766,2]
[310136453,1704382231907,-284.94,0.00029798,2]
[310136454,1704382231917,-409.118,0.000299,2]
[310136455,1704382231926,-168.4191857,0.000299,2]
[310136456,1704382231935,-178.9543775,0.0002991,2]
[310136457,1704382231945,-444.76,0.00029987,2]
[310136458,1704382231954,-446.11,0.0002999,10]
[310136460,1704382231963,-371.76,0.0002999,10]
[310136462,1704382231973,-346.18797911,0.00029998,2]
[310136464,1704382231983,-593.32083771,0.00029999,2]
[310136465,1704382231993,-30415.8139618,0.0003,2]
[310136468,1704382232056,-14337.74160197,0.0003,2]
[310136470,1704382232069,-5246.44443623,0.0003,2]
[310136472,1704382232079,-16395.51223475,0.0003,2]
[310136474,1704382232089,-233.23173325,0.0003,2]
[310136476,1704382232098,-50965.95971625,0.0003,2]
[310136491,1704382237901,-2196.8,0.0003,2]
[310136615,1704382240253,-4740.0,0.0003,2]
[310136616,1704382240269,-259.34999995,0.0003,2]
[310136617,1704382240283,-486.63881947,0.0003,2]
[310136618,1704382241110,-24613.6508138,0.0003,2]
[310136619,1704382241120,-580.71892747,0.0003,2]
[310136620,1704382241130,-502.0869647,0.0003,5]
[310136621,1704382241140,-155.0,0.0003,2]
[310136622,1704382241151,-261.71,0.0003002,2]
[310136623,1704382241160,-178.9543775,0.00030099,2]
[310136624,1704382241170,-444.76,0.00030145,2]
[310136625,1704382241179,-432.15,0.00030202,2]
[310136626,1704382241189,-155.28,0.00030267,2]
[310136627,1704382241198,-178.9543775,0.00030289,2]
[310136628,1704382241208,-207.0,0.0003029,2]
[310136629,1704382241219,-156.86,0.00030302,2]
[310136630,1704382241229,-643.6,0.00030302,2]
[310136631,1704382241239,-444.76,0.00030303,2]
[310136632,1704382241249,-227.83,0.00030409,2]
[310136633,1704382241259,-2718.4,0.00030424,2]
[310136634,1704382241269,-444.76,0.00030461,2]
[310136636,1704382241279,-178.9543775,0.00030479,2]
[310136638,1704382241290,-154.90874207,0.00030619,14]
[310136640,1704382241299,-444.76,0.00030619,2]
[310136642,1704382241309,-178.9543775,0.00030668,2]
[310136645,1704382241319,-444.76,0.00030776,2]
[310136646,1704382241328,-178.9543775,0.00030858,2]
[310136649,1704382241338,-207.0,0.0003087,2]
[310136651,1704382241347,-444.76,0.00030934,2]
[310136653,1704382241357,-261.71,0.00030998,2]
[310136655,1704382241367,-2010.647639,0.00030999,4]
[310136656,1704382241378,-50000.0,0.00031,2]
[310136658,1704382241387,-350.0,0.00031,3]
[310136660,1704382241401,-178.9543775,0.00031048,2]
[310136663,1704382241411,-444.76,0.00031092,2]
[310136664,1704382241421,-168.41918569,0.00031111,2]
[310136667,1704382241431,-178.9543775,0.00031237,2]
[310136668,1704382241443,-444.76,0.0003125,2]
[310136671,1704382241453,-8189.77947771,0.000314,2]
[310136673,1704382241463,-444.76,0.00031408,2]
[310136675,1704382241473,-178.9543775,0.00031427,2]
[310136676,1704382241482,-207.0,0.0003146,2]
[310136678,1704382241491,-444.76,0.00031566,2]
[310136680,1704382241500,-4395.43103448,0.000316,2]
[310136682,1704382241510,-178.9543775,0.00031617,2]
[310136684,1704382241519,-444.76,0.00031723,2]
[310136687,1704382241529,-227.83,0.00031778,2]
[310136689,1704382241540,-178.9543775,0.00031807,2]
[310136690,1704382241549,-206.0,0.0003181,2]
[310136693,1704382241559,-155.0,0.00031876,2]
[310136695,1704382241568,-444.76,0.00031881,2]
[310136697,1704382241578,-715.49721523,0.00031888,4]
[310136699,1704382241587,-153.84,0.00031959,2]
[310136701,1704382241597,-261.71,0.00031977,2]
[310136703,1704382241607,-178.9543775,0.00031996,2]
[310136704,1704382241617,-100000.0,0.00032,2]
[310136707,1704382241627,-179.82017932,0.00032,4]
[310136709,1704382241636,-2200.45,0.00032,7]
[310136710,1704382241647,-157.0,0.00032,2]
[310136712,1704382241656,-444.76,0.00032039,2]
[310136714,1704382241665,-207.0,0.0003204,2]
[310136716,1704382241674,-157.24,0.00032074,2]
[310136719,1704382241683,-178.9543775,0.00032186,2]
[310136720,1704382241692,-444.76,0.00032197,2]
[310136723,1704382241702,-168.41918569,0.00032321,2]
[310136724,1704382241711,-206.0,0.0003235,2]
[310136726,1704382241720,-444.76,0.00032355,2]
[310136729,1704382241730,-178.9543775,0.00032376,2]
[310136730,1704382241739,-1847.387,0.00032421,2]
[310136733,1704382241749,-2893.0,0.00032421,2]
[310136734,1704382241758,-19638.0,0.00032421,2]
[310136737,1704382241768,-2019.0,0.00032421,2]
[310136739,1704382241777,-1105.0,0.00032421,2]
[310136740,1704382241787,-942.0,0.00032421,2]
[310136743,1704382241796,-1234.0,0.00032421,2]
[310136745,1704382241806,-935.444,0.00032421,2]
[310136746,1704382241816,-992.0,0.00032421,2]
[310136748,1704382241825,-1925.0,0.00032421,2]
[310136750,1704382241835,-351.36,0.0003243,2]
[310136753,1704382241845,-432.15,0.00032466,2]
[310136754,1704382241854,-444.76,0.00032513,2]
[310136757,1704382241864,-178.9543775,0.00032565,2]
[310136758,1704382241874,-207.0,0.0003262,2]
[310136761,1704382241884,-444.76,0.00032671,2]
[310136763,1704382241894,-181.00484038,0.00032676,6]
[310136764,1704382241906,-178.9543775,0.00032755,2]
[310136767,1704382241916,-55555.0,0.00032776,3]
[310136769,1704382241926,-151.69064531,0.00032776,2]
[310136771,1704382241936,-444.76,0.00032828,2]
[310136773,1704382241946,-240.99235907,0.00032873,2]
[310136774,1704382241955,-592.79994669,0.00032875,2]
[310136776,1704382241964,-157.0,0.00032876,2]
[310136778,1704382241974,-500.0,0.00032876,2]
[310136779,1704382241983,-500.0,0.00032876,2]
[310136780,1704382241993,-294.38650195,0.00032876,2]
[310136781,1704382242003,-500.0,0.00032876,2]
[310136782,1704382242012,-500.0,0.00032876,2]
[310136783,1704382242021,-500.0,0.00032876,2]
[310136784,1704382242031,-637.89716254,0.00032876,2]
[310136785,1704382242040,-500.0,0.00032876,2]
[310136786,1704382242050,-500.0,0.00032876,2]
[310136787,1704382242059,-500.0,0.00032876,2]
[310136788,1704382242068,-510.61694024,0.00032876,2]
[310136789,1704382242079,-500.0,0.00032876,2]
[310136790,1704382242089,-500.0,0.00032876,2]
[310136791,1704382242097,-500.0,0.00032876,2]
[310136792,1704382242107,-500.0,0.00032876,2]
[310136793,1704382242116,-500.0,0.00032876,2]
[310136794,1704382242126,-543.30814881,0.00032876,2]
[310136795,1704382242135,-500.0,0.00032876,2]
[310136796,1704382242144,-500.0,0.00032876,2]
[310136797,1704382242154,-541.01001287,0.00032876,2]
[310136798,1704382242164,-500.0,0.00032876,2]
[310136799,1704382242173,-500.0,0.00032876,2]
[310136808,1704382242432,-500.0,0.00032876,2]
[310136809,1704382242443,-500.0,0.00032876,2]
[310136811,1704382242454,-500.0,0.00032876,2]
[310136813,1704382242464,-500.0,0.00032876,2]
[310136816,1704382242475,-353.22106459,0.00032876,2]
[310136818,1704382242485,-500.0,0.00032876,2]
[310136820,1704382242494,-725.45,0.00032876,2]
[310136821,1704382242505,-500.0,0.00032876,2]
[310136823,1704382242515,-500.0,0.00032876,2]
[310136825,1704382242526,-500.0,0.00032876,2]
[310136827,1704382242535,-315.79670024,0.00032876,2]
[310136829,1704382242545,-500.0,0.00032876,2]
[310136830,1704382242554,-772.81,0.00032876,2]
[310136832,1704382242564,-500.0,0.00032876,2]
[310136833,1704382242573,-500.0,0.00032876,2]
[310136834,1704382242582,-617.61,0.00032876,2]
[310136835,1704382242591,-500.0,0.00032876,2]
[310136836,1704382242601,-500.0,0.00032876,2]
[310136837,1704382242611,-812.86,0.00032876,2]
[310136838,1704382242621,-500.0,0.00032876,2]
[310136839,1704382242630,-500.0,0.00032876,2]
[310136840,1704382242640,-477.49550247,0.00032876,2]
[310136841,1704382242651,-500.0,0.00032876,2]
[310136842,1704382242661,-647.04,0.00032876,2]
[310136843,1704382242671,-663.27,0.00032876,2]
[310136844,1704382242680,-986.85,0.00032876,2]
[310136845,1704382242691,-500.0,0.00032876,2]
[310136846,1704382242700,-500.0,0.00032876,2]
[310136847,1704382242710,-665.86,0.00032876,2]
[310136848,1704382242720,-553.7,0.00032876,2]
[310136849,1704382242729,-553.7,0.00032876,2]
[310136850,1704382242739,-553.7,0.00032876,2]
[310136851,1704382242748,-553.7,0.00032876,2]
[310136852,1704382242760,-553.7,0.00032876,2]
[310136853,1704382242770,-553.7,0.00032876,2]
[310136854,1704382242779,-553.7,0.00032876,2]
[310136855,1704382242789,-553.7,0.00032876,2]
[310136856,1704382242798,-500.0,0.00032876,2]
[310136857,1704382242807,-500.0,0.00032876,2]
[310136858,1704382242817,-773.17,0.00032876,2]
[310136859,1704382242826,-190.35407797,0.00032876,2]
[310136860,1704382242835,-500.0,0.00032876,2]
[310136861,1704382242844,-619.33,0.00032876,2]
[310136862,1704382242854,-500.0,0.00032876,2]
[310136863,1704382242863,-598.96,0.00032876,2]
[310136864,1704382242872,-500.0,0.00032876,2]
[310136865,1704382242881,-500.0,0.00032876,2]
[310136866,1704382242891,-500.0,0.00032876,2]
[310136867,1704382242902,-500.0,0.00032876,2]
[310136868,1704382242911,-500.0,0.00032876,2]
[310136869,1704382242921,-500.0,0.00032876,2]
[310136870,1704382242930,-1038.81,0.00032876,2]
[310136871,1704382242940,-500.0,0.00032876,2]
[310136872,1704382242949,-500.0,0.00032876,2]
[310136873,1704382242959,-500.0,0.00032876,2]
[310136874,1704382242968,-854.92,0.00032876,2]
[310136875,1704382242978,-500.0,0.00032876,2]
[310136876,1704382242987,-500.0,0.00032876,2]
[310136878,1704382242996,-500.0,0.00032876,2]
[310136880,1704382243005,-500.0,0.00032876,2]
[310136881,1704382243014,-1260.91,0.00032876,2]
[310136883,1704382243024,-500.0,0.00032876,2]
[310136885,1704382243033,-500.0,0.00032876,2]
[310136886,1704382243042,-1003.59,0.00032876,2]
[310136887,1704382243051,-500.0,0.00032876,2]
[310136888,1704382243060,-500.0,0.00032876,2]
[310136889,1704382243070,-500.0,0.00032876,2]
[310136890,1704382243079,-1673.23,0.00032876,2]
[310136891,1704382243089,-864.12,0.00032876,2]
[310136892,1704382243098,-500.0,0.00032876,2]
[310136893,1704382243107,-500.0,0.00032876,2]
[310136894,1704382243117,-500.0,0.00032876,2]
[310136895,1704382243125,-500.0,0.00032876,2]
[310136896,1704382243135,-1051.55,0.00032876,2]
[310136897,1704382243145,-883.08,0.00032876,2]
[310136898,1704382243156,-500.0,0.00032876,2]
[310136899,1704382243165,-500.0,0.00032876,2]